bitfinex-derivatives/quotes_SOLF0:USTF0_20251119
["timestamp","ask_amount","ask_price","bid_price","bid_amount"]
[1763514172225,5.51771964,140.9,140.88,0.04651753]
[1763514172431,0.05282726,140.9,140.88,0.04651753]
[1763514173833,0.05282726,140.9,140.88,6.43881753]
[1763514174230,0.05282726,140.9,140.88,0.04651753]
[1763514175727,5.47681844,140.89,140.88,0.04651753]
[1763514176534,0.05282726,140.9,140.88,0.04651753]
[1763514177229,5.48054544,140.89,140.88,0.04651753]
[1763514177733,8.48525898,140.89,140.88,0.04651753]
[1763514178226,5.48525898,140.89,140.88,0.04651753]
[1763514180530,8.48525898,140.89,140.85,6.3936]
[1763514180730,8.48525898,140.89,140.81,37.26]
[1763514180731,3.0,140.87,140.81,37.26]
[1763514180937,5.48525898,140.86,140.81,37.26]
[1763514181135,3.0,140.88,140.85,6.3937]
[1763514181337,5.50450026,140.87,140.85,6.3937]
[1763514181532,6.59575031,140.9,140.87,6.3926]
[1763514181731,5.51192885,140.89,140.87,6.3926]
[1763514181931,5.51192885,140.88,140.87,6.3926]
[1763514182130,8.51192885,140.88,140.85,6.3933]
[1763514182326,5.51192885,140.87,140.82,37.26]
[1763514182531,5.56483804,140.86,140.82,37.26]
[1763514182834,5.51192885,140.85,140.82,37.26]
[1763514183035,0.05290919,140.86,140.82,37.26]
[1763514183236,0.05290919,140.86,140.82,136.7342]
[1763514183437,0.05290919,140.86,140.83,102.4286766]
[1763514184029,0.05290919,140.86,140.85,6.3937]
[1763514185530,0.05290919,140.86,140.85,43.6537]
[1763514186436,1.073e-05,140.9,140.88,99.437]
[1763514186642,6.59575031,140.95,140.89,37.26]
[1763514186836,2.99,140.94,140.89,37.26]
[1763514187144,2.99,140.95,140.9,99.4233]
[1763514187344,0.05075858,140.94,140.91,0.05268703]
[1763514187732,3.04075858,140.94,140.91,0.05268703]
[1763514187929,2.99,140.93,140.89,37.26]
[1763514188141,2.99,140.93,140.86,37.26]
[1763514188442,2.99,140.92,140.85,37.26]
[1763514188945,3.04293579,140.9,140.85,37.26]
[1763514189154,3.04293579,140.9,140.87,6.3928]
[1763514189446,3.04293579,140.9,140.85,37.26]
[1763514189736,3.04293579,140.9,140.87,6.3928]
[1763514189941,3.04293579,140.9,140.85,37.26]
[1763514190947,0.05293579,140.9,140.88,6.3923]
[1763514191247,9.58575031,140.97,140.88,136.6935]
[1763514191436,2.99,140.96,140.91,6.3906]
[1763514191637,2.99,140.95,140.88,37.26]
[1763514192149,2.99,140.92,140.9,0.05217364]
[1763514192334,2.99,140.9,140.8,2.9566766]
[1763514192533,2.99,140.85,140.84,0.04774166]
[1763514192735,0.05021488,140.86,140.84,0.04774166]
[1763514193143,3.04021488,140.86,140.84,0.04774166]
[1763514194044,0.05021488,140.86,140.84,0.04774166]
[1763514194248,0.05021488,140.86,140.84,6.44184166]
[1763514196540,0.05021488,140.86,140.84,43.72184166]
[1763514199246,0.05021488,140.86,140.84,6.44184166]
[1763514203543,3.04021488,140.86,140.84,0.04774166]
[1763514203744,3.04021488,140.86,140.75,99.5292]
[1763514203745,2.99,140.84,140.72,99.5483]
[1763514204054,2.99,140.78,140.69,99.5712]
[1763514204255,2.99,140.76,140.66,102.5461766]
[1763514204551,2.99,140.75,140.69,1.23671772]
[1763514204744,0.04728306,140.73,140.69,1.23671772]
[1763514205146,0.04728306,140.73,140.69,100.80571772]
[1763514205355,0.04728306,140.73,140.69,38.53671772]
[1763514205748,0.04728306,140.73,140.7,6.4005]
[1763514207555,3.03728306,140.73,140.68,6.4012]
[1763514207760,3.03728306,140.73,140.69,37.32]
[1763514208558,3.03728306,140.73,140.67,37.32]
[1763514208758,3.0410389,140.71,140.67,37.32]
[1763514208955,3.0410389,140.71,140.64,1.23704744]
[1763514209158,2.99,140.7,140.61,99.6274]
[1763514209353,0.04666992,140.67,140.64,99.6059]
[1763514209659,0.04666992,140.67,140.65,37.34]
[1763514210051,0.04666992,140.67,140.65,43.7426]
[1763514211454,0.04666992,140.67,140.66,37.36]
[1763514211748,2.99,140.73,140.67,6.4017]
[1763514211945,40.31,140.75,140.67,99.5853]
[1763514212147,40.31,140.75,140.66,136.9494]
[1763514212148,2.99,140.75,140.66,37.36]
[1763514212355,2.99,140.75,140.67,37.36]
[1763514212759,0.04501736,140.72,140.7,0.05208621]
[1763514214063,3.18501736,140.72,140.7,0.05208621]
[1763514216864,3.18501736,140.72,140.61,104.56867736]
[1763514217061,3.14,140.72,140.61,104.56867736]
[1763514217263,3.14,140.7,140.64,6.4031]
[1763514217956,3.19405601,140.68,140.64,43.7631]
[1763514218559,0.05405601,140.68,140.65,6.4026]
[1763514219259,0.05405601,140.68,140.62,100.85489933]
[1763514219260,3.19405601,140.68,140.63,6.4035]
[1763514219466,3.19405601,140.68,140.64,37.36]
[1763514219662,3.19405601,140.68,140.62,1.23739933]
[1763514219865,3.19405601,140.68,140.63,37.38]
[1763514220163,3.19405601,140.68,140.62,38.61739933]
[1763514220367,9.59575601,140.68,140.62,38.61739933]
[1763514220568,3.14,140.67,140.62,37.38]
[1763514221063,3.14,140.67,140.61,6.4045]
[1763514222068,3.14,140.65,140.55,99.6675]
[1763514222365,0.05042904,140.61,140.57,99.6562]
[1763514222566,0.05042904,140.61,140.57,100.89403947]
[1763514223564,0.05042904,140.61,140.59,6.4053]
[1763514223764,0.05042904,140.61,140.57,1.23783947]
[1763514223962,0.05042904,140.61,140.59,6.4054]
[1763514225158,3.19042904,140.61,140.57,1.23783947]
[1763514225369,3.19042904,140.61,140.54,6.4074]
[1763514225563,3.19042904,140.61,140.52,100.92576979]
[1763514225766,0.05075196,140.58,140.55,37.38]
[1763514226360,0.05075196,140.58,140.56,6.4067]
[1763514226562,3.14,140.67,140.58,99.6498]
[1763514226770,3.14,140.67,140.6,99.6348]
[1763514226967,3.14,140.67,140.61,37.42]
[1763514227563,0.05038585,140.65,140.63,0.04480652]
[1763514228170,0.05038585,140.65,140.63,37.48480652]
[1763514229969,0.05038585,140.65,140.63,43.88840652]
[1763514230862,0.05038585,140.65,140.63,6.44840652]
[1763514231062,0.05038585,140.65,140.63,43.86840652]
[1763514234292,3.14,140.72,140.65,99.599]
[1763514234494,3.14,140.72,140.66,37.42]
[1763514235382,0.04703082,140.7,140.68,6.44990989]
[1763514236281,0.04703082,140.7,140.68,0.04860989]
[1763514237092,0.04703082,140.7,140.68,6.45000989]
[1763514237282,3.14,140.76,140.69,37.4]
[1763514237794,3.14,140.76,140.72,6.3996]
[1763514238387,6.3975,140.77,140.68,99.5756]
[1763514238388,0.0452335,140.75,140.73,0.0471785]
[1763514238584,0.0452335,140.75,140.73,37.4671785]
[1763514239190,0.0452335,140.75,140.73,43.8660785]
[1763514241090,3.14,140.8,140.76,6.3977]
[1763514241290,3.14,140.8,140.77,37.4]
[1763514241791,3.14,140.79,140.7,104.50387736]
[1763514241994,0.04942289,140.76,140.73,0.04734873]
[1763514242399,0.04942289,140.76,140.74,6.3986]
[1763514242700,0.04942289,140.76,140.75,37.4]
[1763514243203,3.14,140.8,140.76,6.3977]
[1763514243394,3.26,140.83,140.75,136.9264]
[1763514243699,3.26,140.83,140.79,6.3964]
[1763514243900,6.3936,140.86,140.8,37.4]
[1763514243901,9.6536,140.86,140.8,37.4]
[1763514244100,5.33346049,140.85,140.8,37.4]
[1763514244295,0.05076374,140.84,140.82,6.3949]
[1763514244603,0.05076374,140.84,140.81,0.05302223]
[1763514245087,3.31076374,140.84,140.81,0.05302223]
[1763514245486,3.31076374,140.84,140.82,37.4]
[1763514246201,8.59881728,140.83,140.81,0.05302223]
[1763514246402,0.05076374,140.84,140.81,0.05302223]
[1763514247899,3.31076374,140.84,140.81,0.05302223]
[1763514248098,3.31076374,140.84,140.81,37.45302223]
[1763514249411,0.05076374,140.84,140.81,37.45302223]
[1763514252108,0.05076374,140.84,140.82,6.395]
[1763514253204,3.31076374,140.84,140.82,37.38]
[1763514253508,0.05076374,140.84,140.82,37.38]
[1763514254111,0.05076374,140.84,140.81,0.05302223]
[1763514254305,3.31076374,140.84,140.77,6.3973]
[1763514254505,3.26,140.82,140.71,104.48848918]
[1763514254808,3.26,140.79,140.69,99.5663]
[1763514255008,3.26,140.79,140.7,37.4]
[1763514255203,0.05135709,140.76,140.73,0.04661762]
[1763514255906,3.31135709,140.76,140.73,0.04661762]
[1763514258604,0.05135709,140.76,140.73,0.04661762]
[1763514261305,0.05135709,140.76,140.73,6.44561762]
[1763514261907,0.05135709,140.76,140.74,6.3986]
[1763514262309,0.05135709,140.76,140.73,0.04661762]
[1763514263112,0.05135709,140.76,140.73,6.44571762]
[1763514263815,0.05135709,140.76,140.74,6.3986]
[1763514264512,0.05135709,140.76,140.73,0.04661762]
[1763514268015,0.05135709,140.76,140.73,6.44571762]
[1763514268617,0.05135709,140.76,140.74,6.3987]
[1763514269611,0.05135709,140.76,140.74,43.7787]
[1763514270220,0.05135709,140.76,140.74,6.3987]
[1763514270522,0.05135709,140.76,140.74,43.7787]
[1763514270711,0.05135709,140.76,140.74,6.3987]
[1763514271016,0.05135709,140.76,140.75,39.27529211]
[1763514271714,0.05135709,140.76,140.75,1.89529211]
[1763514271920,0.05135709,140.76,140.75,39.27529211]
[1763514272117,0.05135709,140.76,140.75,39.25529211]
[1763514272820,0.05135709,140.76,140.75,37.36]
[1763514274715,0.05135709,140.76,140.74,6.3987]
[1763514274915,0.05135709,140.76,140.75,37.36]
[1763514275518,0.05135709,140.76,140.74,6.3987]
[1763514275719,0.05135709,140.76,140.75,37.36]
[1763514276622,0.05135709,140.76,140.75,43.7583]
[1763514278425,0.05135709,140.76,140.75,43.7383]
[1763514280723,0.05135709,140.76,140.75,6.3983]
[1763514280916,3.33135709,140.76,140.73,6.44541762]
[1763514281223,3.33135709,140.76,140.74,37.34]
[1763514282620,3.33135709,140.76,140.73,37.38661762]
[1763514282821,3.33135709,140.76,140.73,40.34779903]
[1763514282822,0.05135709,140.76,140.73,40.34779903]
[1763514283635,0.05135709,140.76,140.75,6.3983]
[1763514286037,0.05135709,140.76,140.75,43.7383]
[1763514290541,0.05135709,140.76,140.75,6.3983]
[1763514290742,0.05135709,140.76,140.75,43.7183]
[1763514292738,3.28,140.86,140.77,99.515]
[1763514292939,3.28,140.85,140.78,40.28118141]
[1763514293142,9.6738,140.85,140.8,6.3959]
[1763514293342,3.28,140.84,140.81,37.32]
[1763514293648,3.32516791,140.84,140.81,37.36785437]
[1763514295443,0.04516791,140.84,140.82,6.395]
[1763514295650,3.32516791,140.84,140.81,37.36785437]
[1763514295845,0.04516791,140.84,140.82,6.395]
[1763514297344,0.04516791,140.84,140.83,37.32]
[1763514300148,6.59575031,140.95,140.83,37.32]
[1763514300353,3.28,140.92,140.85,99.4577]
[1763514300748,3.28,140.92,140.84,2.96118141]
[1763514300948,3.28,140.91,140.84,37.3]
[1763514301255,3.28,140.88,140.86,0.05345078]
[1763514301456,3.28,140.87,140.86,0.05345078]
[1763514301658,4.7,140.87,140.86,0.05345078]
[1763514309264,4.7,140.87,140.78,99.5065]
[1763514309265,3.05,140.84,140.76,2.96118141]
[1763514309460,3.05,140.84,140.77,37.3]
[1763514310258,3.05,140.81,140.79,0.0447592]
[1763514310756,3.10052762,140.82,140.79,0.0447592]
[1763514315067,3.05,140.8,140.79,0.0447592]
[1763514317470,0.05052762,140.82,140.79,0.0447592]
[1763514318565,0.05052762,140.82,140.8,43.6959]
[1763514321473,0.05052762,140.82,140.8,6.3959]
[1763514321776,0.05052762,140.82,140.81,37.3]
[1763514322277,9.5527,140.88,140.81,37.3]
[1763514322769,3.16,140.87,140.81,37.3]
[1763514322979,3.16,140.9,140.85,6.3936]
[1763514323366,5.32122461,140.92,140.85,6.3936]
[1763514323367,3.16,140.88,140.86,0.04782796]
[1763514324069,0.05050504,140.89,140.86,37.34782796]
[1763514326081,3.21050504,140.89,140.86,37.32782796]
[1763514326579,3.21050504,140.89,140.86,0.04782796]
[1763514327978,3.16,140.87,140.86,0.04782796]
[1763514330179,3.16,140.88,140.86,0.04782796]
[1763514332272,3.21050504,140.89,140.86,0.04782796]
[1763514334574,0.05050504,140.89,140.86,0.04782796]
[1763514335074,3.17050504,140.89,140.86,0.04782796]
[1763514335279,3.17050504,140.89,140.86,6.44102796]
[1763514335479,3.17050504,140.89,140.86,0.04782796]
[1763514337282,3.17050504,140.89,140.86,6.44102796]
[1763514337785,0.05050504,140.89,140.87,6.3928]
[1763514340778,0.05050504,140.89,140.88,6.3924]
[1763514340980,3.12,140.96,140.89,99.4274]
[1763514341181,8.42527046,140.99,140.93,1.89281644]
[1763514341472,3.12,140.99,140.93,1.89281644]
[1763514341678,3.12,141.01,140.95,1.89281644]
[1763514341882,3.12,141.04,140.97,1.89281644]
[1763514342083,3.12,141.04,140.97,1.94241812]
[1763514342286,3.17071058,141.02,140.99,1.89281644]
[1763514342477,3.17071058,141.02,140.99,1.93782063]
[1763514342885,3.12,141.01,140.99,0.04500419]
[1763514344195,3.12,141.0,140.99,0.04500419]
[1763514346588,3.12,141.0,140.95,37.26]
[1763514347091,9.5075,140.99,140.95,37.26]
[1763514347596,0.04750483,140.98,140.96,0.04544765]
[1763514348190,0.04750483,140.98,140.96,6.43404765]
[1763514348389,0.04750483,140.98,140.97,1.89281644]
[1763514349891,3.12,141.02,140.97,1.89281644]
[1763514349892,3.12,141.02,140.97,8.28091644]
[1763514350400,3.12,141.02,140.97,1.89281644]
[1763514350790,0.04667656,141.01,140.97,1.89281644]
[1763514351090,3.16667656,141.01,140.97,1.89281644]
[1763514351601,3.16667656,141.01,140.96,37.28544765]
[1763514354206,3.16667656,141.01,140.96,0.04544765]
[1763514354496,3.16667656,141.01,140.96,37.28544765]
[1763514355088,3.12,141.0,140.96,37.28544765]
[1763514356194,3.12,141.0,140.96,0.04544765]
[1763514356396,3.12,141.0,140.96,37.28544765]
[1763514357306,6.43327656,141.01,140.96,37.28544765]
[1763514357307,3.12,140.99,140.96,0.04544765]
[1763514357497,3.12,140.97,140.9,1.89281644]
[1763514357897,3.12,140.97,140.92,1.89281644]
[1763514358600,0.04779493,140.96,140.93,0.05022528]
[1763514358795,0.04779493,140.96,140.94,1.89281644]
[1763514358999,0.04779493,140.96,140.94,8.28231644]
[1763514359299,0.04779493,140.96,140.94,45.52231644]
[1763514360003,0.04779493,140.96,140.94,1.89281644]
[1763514360204,3.16779493,140.96,140.94,37.24]
[1763514360510,0.04779493,140.96,140.94,37.24]
[1763514360713,3.16779493,140.96,140.93,0.05022528]
[1763514361205,0.04779493,140.96,140.93,0.05022528]
[1763514363204,0.04779493,140.96,140.93,6.44032528]
[1763514364004,0.04779493,140.96,140.93,1.94304172]
[1763514364209,0.04779493,140.96,140.95,1.89281644]
[1763514364408,3.23,141.02,140.95,1.89281644]
[1763514364613,3.23,141.02,140.97,6.3882]
[1763514365402,3.23,141.05,140.97,1.89281644]
[1763514365606,0.04917461,141.01,140.98,0.05117513]
[1763514365803,0.04917461,141.01,140.99,1.89281644]
[1763514366010,0.04917461,141.01,140.99,8.28011644]
[1763514366815,3.23,141.08,141.0,37.24]
[1763514367113,3.23,141.08,141.0,136.5893]
[1763514367313,15.08554887,141.11,141.01,104.26123409]
[1763514367503,3.23,141.14,141.04,104.23983409]
[1763514367705,8.70077792,141.14,141.06,99.3098]
[1763514367901,3.23,141.14,141.06,99.3098]
[1763514368112,3.23,141.14,141.07,99.3034]
[1763514368316,0.04659344,141.11,141.09,0.04853568]
[1763514368514,0.04659344,141.11,141.1,37.26]
[1763514368913,3.23,141.1,140.98,99.3602]
[1763514369109,15.07948765,141.09,140.98,99.3656]
[1763514369310,15.07948765,141.09,140.97,104.28683409]
[1763514369311,3.23,141.09,141.02,6.3858]
[1763514369610,3.23,141.09,141.03,37.3]
[1763514370007,0.04754052,141.07,141.05,0.04761136]
[1763514370815,0.04754052,141.07,141.06,37.3]
[1763514372611,3.23,141.11,141.06,37.3]
[1763514372816,3.23,141.1,141.06,37.3]
[1763514373315,3.23,141.1,141.07,37.3]
[1763514373515,3.2783658,141.1,141.07,37.3]
[1763514374215,0.0483658,141.1,141.07,37.3]
[1763514375114,3.23,141.16,141.07,136.6006]
[1763514375315,3.23,141.16,141.08,99.2962]
[1763514375519,5.45402269,141.18,141.09,99.2892]
[1763514375720,3.23,141.22,141.11,99.2745]
[1763514375922,3.23,141.22,141.12,37.3]
[1763514375923,5.45326463,141.21,141.12,37.3]
[1763514376219,0.05405395,141.18,141.15,0.05151025]
[1763514377319,3.28405395,141.18,141.15,0.05151025]
[1763514378319,3.28405395,141.18,141.02,99.3374]
[1763514378320,3.23,141.15,141.02,99.3374]
[1763514378619,3.23,141.13,141.04,37.3]
[1763514379117,9.6112,141.13,141.04,37.3]
[1763514379415,9.6112,141.13,141.07,0.05367401]
[1763514379416,3.23,141.09,141.07,0.05367401]
[1763514379607,3.23,141.09,141.0,37.3]
[1763514380015,3.23,141.07,141.0,37.3]
[1763514380621,0.04523547,141.05,141.02,0.05423061]
[1763514383017,0.04523547,141.05,141.02,6.44003061]
[1763514383214,3.23523547,141.05,141.02,0.05423061]
[1763514383414,3.23523547,141.05,141.02,37.35423061]
[1763514383615,3.23523547,141.05,141.02,0.05423061]
[1763514383616,0.04523547,141.05,141.02,0.05423061]
[1763514383814,3.23523547,141.05,141.02,0.05423061]
[1763514386318,0.04523547,141.05,141.02,0.05423061]
[1763514387730,3.23523547,141.05,141.02,0.05423061]
[1763514391022,0.04523547,141.05,141.02,0.05423061]
[1763514392020,0.04523547,141.05,141.02,6.44013061]
[1763514392221,0.04523547,141.05,141.03,37.3]
[1763514392416,3.19,141.09,141.03,37.3]
[1763514392621,3.19,141.09,141.04,6.385]
[1763514393030,3.19,141.09,141.03,37.3]
[1763514393423,0.05429618,141.07,141.05,0.04782305]
[1763514396032,0.05429618,141.07,141.05,6.43232305]
[1763514397638,3.25429618,141.07,141.05,0.04782305]
[1763514397823,3.25429618,141.07,140.97,99.3702]
[1763514398024,3.2,141.07,140.98,37.28]
[1763514398234,104.76186744,141.1,140.95,99.3864]
[1763514398235,3.2,141.05,140.95,99.3864]
[1763514398434,3.2,141.05,140.96,37.28]
[1763514398838,3.2,141.03,140.96,37.28]
[1763514399038,3.24820144,141.02,140.99,0.04890247]
[1763514400638,9.63440144,141.02,140.99,0.04890247]
[1763514400837,3.2,141.01,140.99,0.04890247]
[1763514401741,0.04820144,141.02,140.99,0.04890247]
[1763514403449,0.04820144,141.02,141.0,6.3868]
[1763514403644,0.04820144,141.02,141.01,37.28]
[1763514406242,3.24820144,141.02,140.99,0.04890247]
[1763514406541,3.24820144,141.02,140.99,37.32890247]
[1763514406746,0.04820144,141.02,140.99,43.71620247]
[1763514406933,0.04820144,141.02,140.99,37.32890247]
[1763514407743,3.24820144,141.02,140.99,0.04890247]
[1763514408042,3.24820144,141.02,140.93,37.28]
[1763514408239,3.2,141.02,140.93,37.28]
[1763514408438,9.5874,140.99,140.93,37.28]
[1763514408645,3.2,140.98,140.93,37.28]
[1763514408944,3.25202366,140.97,140.94,0.05080275]
[1763514410249,3.2,140.96,140.94,0.05080275]
[1763514413146,0.05202366,140.97,140.94,0.05080275]
[1763514413649,3.25202366,140.97,140.94,0.05080275]
[1763514420750,3.25202366,140.97,140.94,6.44040275]
[1763514420954,0.05202366,140.97,140.94,0.05080275]
[1763514421365,0.05202366,140.97,140.95,43.6691]
[1763514421756,3.2,141.04,140.97,6.3879]
[1763514421958,3.2,141.04,140.95,37.28]
[1763514422367,3.2,141.01,140.94,37.28]
[1763514422763,0.05237663,140.99,140.96,0.05362633]
[1763514423366,8.74134342,141.07,140.99,99.3598]
[1763514423569,3.25,141.07,141.0,37.3]
[1763514424258,0.05112424,141.05,141.02,0.0502367]
[1763514424665,3.30112424,141.05,141.02,0.0502367]
[1763514424961,0.05112424,141.05,141.02,0.0502367]
[1763514425168,0.05112424,141.05,141.03,6.3855]
[1763514425572,0.05112424,141.05,141.04,37.3]
[1763514425766,3.25,141.13,141.08,6.3832]
[1763514425970,3.25,141.13,141.08,37.3]
[1763514426668,3.25,141.13,141.0,120.6594]
[1763514426862,3.25,141.12,141.01,136.6457]
[1763514427063,0.04833399,141.08,141.05,0.05130386]
[1763514427461,3.29833399,141.08,141.05,0.05130386]
[1763514427865,3.29833399,141.08,141.01,37.3]
[1763514428057,3.25,141.07,141.01,37.3]
[1763514428767,3.25,141.11,141.01,136.6429]
[1763514428964,0.05153588,141.05,141.03,0.05396405]
[1763514429170,0.04551139,141.05,141.03,0.05396405]
[1763514430167,0.04551139,141.05,141.03,6.43936405]
[1763514430372,5.49186422,141.13,141.03,6.43936405]
[1763514430373,8.74186422,141.13,141.04,99.321]
[1763514430664,32.24879156,141.2,141.06,99.3108]
[1763514430865,3.25,141.17,141.09,99.2891]
[1763514431059,3.25,141.17,141.11,99.2744]
[1763514431262,3.25,141.2,141.11,99.2744]
[1763514431466,0.04513442,141.15,141.13,6.42729242]
[1763514431661,0.0546235,141.15,141.14,37.32]
[1763514431875,3.25,141.2,141.14,43.7004]
[1763514432472,3.25,141.2,141.13,0.04659242]
[1763514432669,3.25,141.2,141.15,37.32]
[1763514432870,3.29831127,141.19,141.16,0.05410132]
[1763514433272,3.29831127,141.19,141.12,37.32]
[1763514433567,3.25,141.19,141.12,37.32]
[1763514433769,3.25,141.18,141.09,6.3827]
[1763514434074,3.25,141.18,141.1,37.32]
[1763514434264,3.29533682,141.15,141.13,0.05054393]
[1763514434469,3.30075771,141.15,141.13,0.04991456]
[1763514434674,0.05075771,141.15,141.13,0.04991456]
[1763514435669,0.05075771,141.15,141.14,37.32]
[1763514436071,3.30075771,141.15,141.13,0.04991456]
[1763514439275,3.25,141.14,141.01,99.3445]
[1763514439583,3.25,141.11,141.0,107.56884017]
[1763514439879,3.25,141.11,141.01,37.32]
[1763514440272,3.25,141.06,141.05,0.04709949]
[1763514440878,3.2987533,141.07,141.05,0.04709949]
[1763514442176,3.2987533,141.07,140.98,37.32]
[1763514442482,3.25,141.07,140.98,37.32]
[1763514442677,3.25,141.07,140.99,6.3872]
[1763514442876,3.25,141.07,140.98,37.32]
[1763514443085,0.05330874,141.04,141.01,0.05302221]
[1763514444876,0.05330874,141.04,141.02,6.3859]
[1763514445075,0.05330874,141.04,141.03,37.32]
[1763514446381,0.05330874,141.04,141.01,43.75922221]
[1763514447888,3.03330874,141.04,141.01,37.37302221]
[1763514448082,3.03330874,141.04,141.01,0.05302221]
[1763514448282,3.03330874,141.04,140.97,0.63]
[1763514448477,2.98,141.03,140.97,0.63]
[1763514448680,0.05330874,141.04,140.97,0.63]
[1763514448681,2.98,141.02,140.97,0.63]
[1763514449183,2.98,140.99,140.98,0.05297803]
[1763514450381,0.05250244,141.01,140.98,0.05297803]
[1763514450588,3.03250244,141.01,140.98,0.05297803]
[1763514452799,9.41920244,141.01,140.98,0.05297803]
[1763514453091,9.41920244,141.01,140.93,8.21674017]
[1763514453092,2.98,141.0,140.91,0.63]
[1763514453295,2.98,141.0,140.91,37.95]
[1763514453594,99.3424,141.02,140.91,37.95]
[1763514453595,3.25,140.98,140.91,37.95]
[1763514453980,9.638,140.98,140.93,0.04758188]
[1763514454185,3.25,140.95,140.93,0.04758188]
[1763514455189,3.29997376,140.96,140.93,0.04758188]
[1763514455386,0.04997376,140.96,140.93,0.04758188]
[1763514455990,0.04997376,140.96,140.94,6.3895]
[1763514456586,3.29997376,140.96,140.93,0.04758188]
[1763514456787,0.04997376,140.96,140.93,0.04758188]
[1763514456987,3.29997376,140.96,140.93,0.04758188]
[1763514457897,9.68887376,140.96,140.93,0.04758188]
[1763514458091,3.25,140.95,140.93,0.04758188]
[1763514458490,0.04997376,140.96,140.93,0.04758188]
[1763514458692,0.04997376,140.96,140.91,0.63]
[1763514458693,3.25,140.95,140.91,0.63]
[1763514458888,3.25,140.95,140.84,4.92242722]
[1763514458889,3.25,140.95,140.85,37.36]
[1763514459089,3.25,140.92,140.84,4.92242722]
[1763514459396,3.25,140.92,140.83,37.38]
[1763514459589,3.25,140.92,140.81,4.92242722]
[1763514459893,3.25,140.88,140.86,0.04870601]
[1763514460894,0.04935197,140.89,140.86,0.04870601]
[1763514461100,3.29935197,140.89,140.86,0.04870601]
[1763514464003,0.04935197,140.89,140.87,6.3927]
[1763514464300,0.04935197,140.89,140.86,0.04870601]
[1763514465103,3.25,140.96,140.88,104.35772722]
[1763514465599,3.25,140.96,140.9,6.3913]
[1763514466198,3.25,140.93,140.92,0.05359184]
[1763514466509,3.25,140.93,140.91,0.05082166]
[1763514466696,0.05210707,140.94,140.91,0.05082166]
[1763514467294,0.05210707,140.94,140.91,6.44172166]
[1763514468410,0.05210707,140.94,140.92,6.3904]
[1763514471012,0.05210707,140.94,140.82,2.53]
[1763514471013,3.25,140.91,140.82,2.53]
[1763514471203,3.25,140.91,140.8,4.92242722]
[1763514471401,3.25,140.91,140.81,2.96]
[1763514471601,3.25,140.91,140.82,9.355]
[1763514472103,3.30449662,140.88,140.85,0.04837456]
[1763514474310,3.25,140.87,140.85,0.04837456]
[1763514475607,3.25,140.87,140.79,37.4]
[1763514475808,3.25,140.87,140.77,7.88242722]
[1763514476206,6.394,140.85,140.77,14.27942722]
[1763514476413,3.25,140.84,140.77,2.96]
[1763514476797,0.0525638,140.82,140.79,0.04943055]
[1763514478020,0.0525638,140.82,140.79,3.00943055]
[1763514478518,3.25,140.87,140.8,2.96]
[1763514478713,3.25,140.87,140.82,9.3547]
[1763514479613,3.29820225,140.86,140.83,0.04633173]
[1763514480911,0.04820225,140.86,140.83,3.00633173]
[1763514481112,3.29820225,140.86,140.83,0.04633173]
[1763514481315,0.04820225,140.86,140.83,3.00633173]
[1763514481516,0.04820225,140.86,140.83,9.40083173]
[1763514481711,3.25,140.9,140.83,3.00633173]
[1763514482209,3.25,140.9,140.84,9.354]
[1763514482412,3.25,140.9,140.84,2.96]
[1763514482620,9.6416,140.9,140.83,6.44083173]
[1763514482915,0.04693518,140.88,140.84,2.96]
[1763514483502,3.15693518,140.88,140.84,2.96]
[1763514483714,3.15693518,140.88,140.83,0.04633173]
[1763514483910,3.11,140.86,140.83,0.04633173]
[1763514484313,3.11,140.84,140.75,107.49522722]
[1763514484514,3.11,140.82,140.75,3.05]
[1763514484710,3.11,140.82,140.75,40.47]
[1763514485317,0.05273008,140.8,140.77,3.09842165]
[1763514486612,0.05273008,140.8,140.78,9.4468]